Cogmind - Beta 15 @@@ ROGUE MODE // 2025.05.07 @ 12:26:44 Player: gigi283 Result: Smashed by cave-in Performance ------------- Evolutions (0) 0 Regions Visited (3) 600 Robots Destroyed (7) 35 Value Destroyed (92) 92 Prototype IDs (2) 40 Alien Tech Used (0) 0 Bonus (740) 740 TOTAL SCORE: 1507 Bonus ------- Registered with UFD 300 Met Optimus in HQ 500 Friendly Fire -60 Cogmind --------- Core Integrity 0/250 Matter 273/300 Energy 51/125 System Corruption 22% Temperature Warm (152) Movement Core (500) Ox9 Location -8/Scraptown Parts ------- > --- POWER (1) -------- Light Ion Engine > --- PROPULSION (2) --- (None) > --- UTILITY (2) ------ Large Storage Unit Seismic Detector > --- WEAPON (2) ------- Mining Laser Companion Sword > --- INVENTORY (15) --- Advanced Sensor Array Signal Interpreter Scrapoid Pod Scrapoid Pod EM Pulse Gun Shock Rifle Grenade Launcher DRS Beacon (Ready) DRS Beacon (Expended) Peak State ------------ > --- POWER ------------ Light Nuclear Core > --- PROPULSION ------- Hover Unit Airjet > --- UTILITY ---------- Large Storage Unit Seismic Detector > --- WEAPON ----------- Mining Laser Companion Sword > --- INVENTORY -------- Light Ion Engine Flight Unit Advanced Sensor Array Signal Interpreter Scrapoid Pod Scrapoid Pod EM Pulse Gun Shock Rifle Grenade Launcher DRS Beacon DRS Beacon [Rating: 20] Favorites ----------- Power Light Ion Engine Engine Light Ion Engine Power Core Light Nuclear Core Propulsion Wheel Wheel Wheel Hover Unit Airjet Flight Unit Flight Unit Utility Seismic Detector Device Seismic Detector Storage Small Storage Unit Weapon Grenade Launcher Energy Gun Medium Laser Launcher Grenade Launcher Special Weapon Mining Laser Slashing Weapon Companion Sword Build | -11 -10 -10 -8 ------- Run | Yrd Mat Sub Scr Slots Evolved . | . . . . Power . | . . . . Propulsion . | . . . . Utility . | . . . . Weapon . | . . . . Parts Attached 17 | 7 2 . 8 Power 3 | 1 . . 2 Engine 2 | 1 . . 1 Core 1 | . . . 1 Reactor . | . . . . Propulsion 6 | 2 . . 4 Treads . | . . . . Leg . | . . . . Wheel 3 | 2 . . 1 Hover 2 | . . . 2 Flight 1 | . . . 1 Utility 3 | 2 . . 1 Device 1 | 1 . . . Storage 2 | 1 . . 1 Processor . | . . . . Hackware . | . . . . Protection . | . . . . Artifact . | . . . . Weapon 5 | 2 2 . 1 Energy Gun 2 | 2 . . . Energy Cannon . | . . . . Ballistic Gun . | . . . . Ballistic Cannon . | . . . . Launcher 1 | . 1 . . Special Weapon 1 | . 1 . . Impact Weapon . | . . . . Slashing Weapon 1 | . . . 1 Piercing Weapon . | . . . . Special Melee Weapon . | . . . . Unidentified Prototypes 1 | . . . 1 Parts Lost 6 | . . . 6 Power 1 | . . . 1 Propulsion 5 | . . . 5 Utility . | . . . . Weapon . | . . . . Highest Loss Streak 3 | . . . 3 To Critical Strikes . | . . . . Average Backups 8 | 3 6 8 8 Power . | . 1 1 . Propulsion 2 | 1 3 3 2 Utility 1 | . 1 2 2 Weapon 2 | 1 1 2 2 Tool/Special . | . . . . Unused Backups 10 | . 4 . 6 Power . | . . . . Propulsion 3 | . 3 . . Utility 3 | . . . 3 Weapon 2 | . 1 . 1 Tool/Special 2 | . . . 2 Average Slot Usage (%) 98 | . 100 100 98 Engine 12 | . 14 14 11 Core 1 | . . . 2 Wheel 26 | . 28 28 26 Device 14 | . 14 14 14 Storage 14 | . 14 14 14 Energy Gun 9 | . 17 14 6 Launcher 9 | . . 14 10 Special Weapon 3 | . 9 . 3 Slashing Weapon 5 | . . . 7 Peak Build Rating 20 | 7 7 7 20 Average Rating 10 | 4 7 7 11 On Entrance 5 | . 7 7 7 Naked Turns . | . . . . Heaviest Build 31 | 13 14 14 31 Greatest Support 26 | 20 20 20 26 Greatest Overweight (x) 3 | . . . 3 Average Overweight (x) . | . . . . Largest Inventory Capacity 15 | 8 8 8 15 Average Capacity 9 | 7 8 8 10 Most Carried 15 | 6 8 8 15 Average Carried 8 | 3 7 8 9 Final Capacity 15 | 8 8 8 15 Final Carried 11 | 6 8 8 11 Class Distribution -------------------- 90% | Mutant 9% | Scavenger-Mutant Dominant Class ---------------- Mutant | -10/Materials Mutant | -10/Subcaves Mutant | -8/Scraptown Resources | -11 -10 -10 -8 ----------- Run | Yrd Mat Sub Scr Matter Collected 356 | 270 20 . 66 Remotely . | . . . . Salvage Created 346 | 107 76 58 105 Parts 18 | 9 3 3 3 Haulers Intercepted 1 | . 1 . . Recyclers Shooed . | . . . . Parts Field Recycled . | . . . . Retrieved Matter . | . . . . Parts Self-Destructed 9 | . . 6 3 Prevented . | . . . . Kills | -11 -10 -10 -8 ------- Run | Yrd Mat Sub Scr Combat Hostiles Destroyed 1 | . . 1 . Guns 1 | . . 1 . Classes Destroyed 5 | 2 2 1 . Builder 1 | . 1 . . Tunneler 3 | 2 . . 1 Hauler 1 | . 1 . . Recycler 1 | 1 . . . Sentry 1 | . . 1 . Best Kill Streak 3 | 3 1 1 . Combat Bots Only 1 | . . 1 . Max Kills in Single Turn 1 | 1 1 1 1 Gunslinging . | . . . . Exploded . | . . . . Melee . | . . . . Uniques/NPCs Destroyed . | . . . . Combat | -11 -10 -10 -8 -------- Run | Yrd Mat Sub Scr Hostile Shots Fired 15 | . 13 2 . Missed 5 | . 5 . . Hits 10 | . 8 2 . Projectile 10 | . 8 2 . Critical Strikes 1 | . . 1 . Damage Taken 833 | . 73 27 733 Core 296 | . 9 . 287 Absorbed by Shields . | . . . . Core Remaining (%) 100 | 100 . . . Volleys Fired 61 | 4 8 2 47 Largest 2 | 2 2 1 1 Hottest 100 | 90 100 50 100 Shots Fired 69 | 8 12 2 47 Gun 19 | 8 9 2 . Cannon . | . . . . Launcher 2 | . . . 2 Special 48 | . 3 . 45 Kinetic . | . . . . Thermal 59 | 4 8 2 45 Explosive 2 | . . . 2 Electromagnetic 8 | 4 4 . . Robot Hit Streak 6 | 2 4 6 . Robot Miss Streak 2 | 2 1 . 2 Penetration Max . | . . . . Secondary Targets . | . . . . Shots Hit Robots 16 | 4 7 2 3 Core Hits 13 | 3 3 2 5 Critical Kills . | . . . . Critical Parts Destroyed . | . . . . Critical Strikes 1 | 1 . . . Corrupt 1 | 1 . . . Melee Attacks 3 | . . . 3 Impact . | . . . . Slashing 3 | . . . 3 Piercing . | . . . . Sneak Attacks . | . . . . Combat Hostiles . | . . . . Follow-up Attacks . | . . . . Damage Inflicted 520 | 90 94 25 311 Guns 209 | 90 94 25 . Cannons . | . . . . Explosions 76 | . . . 76 Melee 235 | . . . 235 Ramming . | . . . . Kinetic . | . . . . Thermal 126 | 37 64 25 . Explosive 76 | . . . 76 Electromagnetic 83 | 53 30 . . Impact . | . . . . Slashing 235 | . . . 235 Piercing . | . . . . Highest Corruption 15 | . . . 15 Average Corruption 6 | . . . 6 Corruption Purged . | . . . . Corruption Blocked . | . . . . Effects 3 | . . . 3 Matter Fused 2 | . . . 2 Heat Flow Errors 1 | . . . 1 Overload Shots . | . . . . Overflow Damage 23 | . . . 23 Projectiles . | . . . . Explosions . | . . . . Melee 23 | . . . 23 Knockbacks . | . . . . Impact . | . . . . Kinetic . | . . . . Secondary . | . . . . Self-Inflicted Damage . | . . . . Shots . | . . . . Rammed . | . . . . Targets Rammed . | . . . . Kicked . | . . . . Crushed . | . . . . Highest Temperature 316 | 90 60 12 316 Average Temperature 106 | 40 19 12 122 Received Heat Transfer 27 | . . 27 . Effects 1 | . . . 1 Shutdowns 1 | . . . 1 Siege Activations . | . . . . Martial Activations . | . . . . Shielding Activations . | . . . . Robots Disrupted . | . . . . Combat Hostiles . | . . . . Robots Corrupted . | . . . . Combat Hostiles . | . . . . Parts Fried . | . . . . Impact Corruptions . | . . . . Robots Melted . | . . . . Combat Hostiles . | . . . . Parts Melted 1 | . 1 . . Heat Transferred 370 | 111 185 74 . Parts Sabotaged . | . . . . Parts Stolen . | . . . . Parts Stripped . | . . . . Power Chain Reactions . | . . . . Alert | -11 -10 -10 -8 ------- Run | Yrd Mat Sub Scr Maximum Alert Level . | . . . . Low Security (%) 100 | 100 100 . . Level 1 . | . . . . Level 2 . | . . . . Level 3 . | . . . . Level 4 . | . . . . Level 5 . | . . . . High Security . | . . . . Max Security . | . . . . Peak Influence 30 | 10 30 . . Initial . | . . . . Average 7 | 1 9 . . Influence Increases 125 | 15 80 20 10 Destroy 0b10 Robot/C 20 | . . 20 . Destroy 0b10 Robot/NC 35 | 15 10 . 10 Destroy Leader 2 | . 2 . . Successful Hack 5 | . 5 . . Disable Machine 30 | . 30 . . Destroy Structure 3 | . 3 . . Lose Combat Pursuer 30 | . 30 . . Influence Decreases 125 | 15 80 20 10 Time Decay 125 | 15 80 20 10 Squads Dispatched . | . . . . Investigation . | . . . . Extermination . | . . . . Reinforcement . | . . . . Assault . | . . . . Garrison . | . . . . Intercept . | . . . . Searches Triggered . | . . . . Construction Impeded . | . . . . Haulers Reinforced . | . . . . Active Scanning Responses . | . . . . Cargo Convoy Interrupts . | . . . . Stealth | -11 -10 -10 -8 --------- Run | Yrd Mat Sub Scr Distress Signals 1 | . 1 . . Communications Jammed . | . . . . Distress Signals . | . . . . Times Spotted 8 | . 4 1 3 Peak Tracking Total 4 | . 4 1 2 Tactical Retreats 1 | . 1 . . Traps | -11 -10 -10 -8 ------- Run | Yrd Mat Sub Scr Traps Triggered . | . . . . Indirectly . | . . . . Trap Hack Attempts . | . . . . Triggered . | . . . . Disarmed . | . . . . Reprogrammed . | . . . . Reused . | . . . . Traps Extracted . | . . . . Installed . | . . . . Triggered . | . . . . Machines | -11 -10 -10 -8 ---------- Run | Yrd Mat Sub Scr Machines Disabled 3 | . 2 . 1 Max in Single Turn 1 | . 1 . 1 Machines Repaired . | . . . . Machines Dismantled . | . . . . Machines Sabotaged . | . . . . Overloaded Fab Kills . | . . . . Hacking | -11 -10 -10 -8 --------- Run | Yrd Mat Sub Scr Machines Accessed 8 | . 2 . 6 Terminals 2 | . 2 . . Fabricators . | . . . . Repair Stations . | . . . . Recycling Units . | . . . . Scanalyzers . | . . . . Garrison Access . | . . . . Total Hacks 50 | . 6 . 44 Successful 46 | . 2 . 44 Failed 4 | . 4 . . Catastrophic . | . . . . Database Lockouts . | . . . . Manual 5 | . 5 . . Terminals 6 | . 6 . . Fabricators . | . . . . Repair Stations . | . . . . Recycling Units . | . . . . Scanalyzers . | . . . . Garrison Access . | . . . . Terminal Hacks 44 | . . . 44 Record 43 | . . . 43 Open Door 1 | . . . 1 Fabricator Hacks . | . . . . Repair Station Hacks . | . . . . Recycling Unit Hacks . | . . . . Scanalyzer . | . . . . Garrison Access Hacks . | . . . . Unauthorized Hacks 2 | . 2 . . Terminals 2 | . 2 . . Botnet 2 | . 2 . . Fabricators . | . . . . Repair Stations . | . . . . Recycling Units . | . . . . Scanalyzers . | . . . . Garrison Access . | . . . . Data Cores Recovered . | . . . . Used . | . . . . Hacking Detections 2 | . 2 . . Full Trace Events . | . . . . Feedback Events . | . . . . Feedback Blocked . | . . . . Robot Schematics Acquired . | . . . . Robots Built . | . . . . Authchips . | . . . . Time . | . . . . Total Robot Build Rating . | . . . . Part Schematics Acquired . | . . . . Parts Built . | . . . . Authchips . | . . . . Time . | . . . . Total Part Build Rating . | . . . . Parts Repaired . | . . . . Time . | . . . . Parts Recycled . | . . . . Recycled Matter . | . . . . Retrieved Matter . | . . . . Retrieved Components . | . . . . Parts Scanalyzed . | . . . . Part Schematics Acquired . | . . . . Parts Damaged . | . . . . Bothacking | -11 -10 -10 -8 ------------ Run | Yrd Mat Sub Scr Used RIF Installer . | . . . . Robots Hacked . | . . . . Non-combat . | . . . . Combat . | . . . . Robot Hacks Applied . | . . . . Relay Couplers Released . | . . . . Fabnet Peak Effective % . | . . . . Robots Rewired . | . . . . Allies Hacked . | . . . . Hacks Repelled . | . . . . Allies | -11 -10 -10 -8 -------- Run | Yrd Mat Sub Scr Total Allies . | . . . . Largest Group . | . . . . Highest-Rated Group . | . . . . Highest-Rated Ally . | . . . . Total Orders . | . . . . Ally Attacks . | . . . . Total Damage . | . . . . Kills . | . . . . Allies Corrupted . | . . . . Allies Melted 2 | . . . 2 Intel | -11 -10 -10 -8 ------- Run | Yrd Mat Sub Scr Active Infowar (turns) 1727 | 11 286 213 1217 Seismic 1727 | 11 286 213 1217 Robot Analysis Total . | . . . . Derelict Logs Recovered . | . . . . Drone Launches . | . . . . Drone Recoveries . | . . . . Exploration | -11 -10 -10 -8 ------------- Run | Yrd Mat Sub Scr Turns Passed 1797 | 82 286 213 1216 Spaces Moved 1701 | 65 305 166 1165 Core 6 | 6 . . . Treads . | . . . . Legs . | . . . . Wheels 1690 | 59 305 166 1160 Hover 5 | . . . 5 Flight . | . . . . Fastest Speed 50 | 50 80 80 80 Average Speed 83 | 77 80 80 84 Slowest Speed 240 | 80 80 80 240 Overloaded Moves . | . . . . Propulsion Burnouts . | . . . . Robots Hopped . | . . . . Potential Cave-ins 34 | . . . 34 Cave-ins Triggered 5 | . . . 5 Exploration Rate (%) 35 | 4 49 20 68 Regions Visited 3 Branch Regions 2 Pre-discovered Areas . | . . . . Known Exits Taken . | . . . . Unknown Exits Taken 3 | 1 1 1 . Scrap Searched 4 | . . . 4 Spaces Dug 47 | . 3 . 44 Terrain Destroyed 53 | . 3 . 50 Melee . | . . . . Projectile 47 | . 3 . 44 AOE 6 | . . . 6 Terrain Rammed . | . . . . Walls Destroyed . | . . . . Machines Disabled . | . . . . Actions | -11 -10 -10 -8 --------- Run | Yrd Mat Sub Scr Total 1919 | 88 329 243 1259 Wait 101 | . 5 76 20 Move 1697 | 64 304 165 1164 Hop . | . . . . Pick Up 28 | 13 6 . 9 Fast Attach . | . . . . Attach 12 | 7 . . 5 Detach . | . . . . Swap 6 | . 2 . 4 Drop 10 | . 4 . 6 Fire 61 | 4 8 2 47 Melee 3 | . . . 3 Ram . | . . . . Kick . | . . . . Crush . | . . . . Escape Stasis 1 | . . . 1 Rewire . | . . . . Trap . | . . . . Miscellaneous . | . . . . Route ------- -11/Scrapyard -10/Materials (discovered 3 exits: [*Min x2] / [*Sub]) -10/Subcaves -8/Scraptown History --------- Turn | Location | Event 23 | -11/Scrapyard | Discovered new exit (range 16) 83 | -11/Scrapyard | Entered Materials 84 | -10/Materials | Met a group of wandering Federalists 98 | -10/Materials | Discovered new exit (range 16) 221 | -10/Materials | Discovered new exit (range 7) 256 | -10/Materials | Discovered new exit (range 8) 310 | -10/Materials | Build established: Mutant 369 | -10/Materials | Entered Subcaves 370 | -10/Subcaves | Continued accompanying wandering Federalists (5) 580 | -10/Subcaves | Wandering Federalist uncovered a shortcut to Scraptown 582 | -10/Subcaves | Entered Scraptown 640 | -8/Scraptown | Heard Great Nut preacher, LISTEN AND RECITE! 755 | -8/Scraptown | Visited Comm Corps 816 | -8/Scraptown | Visited Fellowship of the Rings 845 | -8/Scraptown | Visited UFD Registry 1026 | -8/Scraptown | Visited Shadow of the Wyrm 1060 | -8/Scraptown | Visited Cave Peace 1105 | -8/Scraptown | Registered with UFD as "Cogroller" 1138 | -8/Scraptown | Visited Sword Containment 1170 | -8/Scraptown | Visited Curators Association 1206 | -8/Scraptown | Visited Supply Room 1362 | -8/Scraptown | Visited Derelict Rescue Squad 1376 | -8/Scraptown | Found DRS Beacon 1384 | -8/Scraptown | Found DRS Beacon 1446 | -8/Scraptown | Met Optimus 1446 | -8/Scraptown | Accepted into 0bPrime 1493 | -8/Scraptown | Visited Scrapoid Pod Storage 1499 | -8/Scraptown | Civil war broke out across Scraptown 1500 | -8/Scraptown | Found Scrapoid Pod 1539 | -8/Scraptown | Found Scrapoid Pod 1563 | -8/Scraptown | Lost 6 allies 1660 | -8/Scraptown | Crushed by falling debris 1660 | -8/Scraptown | Core integrity fell below 50% 1675 | -8/Scraptown | Optimus destroyed in the chaos of civil war 1757 | -8/Scraptown | Crushed by falling debris 1764 | -8/Scraptown | Crushed by falling debris 1764 | -8/Scraptown | System corruption reached 10% 1780 | -8/Scraptown | Crushed by falling debris 1795 | -8/Scraptown | Lost 3 parts (1p2n) 1799 | -8/Scraptown | Crushed by falling debris 1799 | -8/Scraptown | Smashed by cave-in Last Messages --------------- 01763_ The unstable cave ceiling collapses. 01764_ Crushed by falling debris. 01764_ Lgt. Nuclear Core destroyed. 01764_ System corrupted by crushing effect (+5). 01764_ Hover Unit destroyed. 01764_ System corrupted by crushing effect (+4). 01768_ System corrupted: Matter fused (-7). 01780_ The unstable cave ceiling collapses. 01780_ Crushed by falling debris. 01784_ System corrupted: Heat flow error (+160). 01785_ Power failure, Lgt. Ion Engine shutdown. Companion Sword: "At this speed it will be hard to reposition during intense encounters, but I trust your judgment." 01799_ The unstable cave ceiling collapses. 01799_ Crushed by falling debris. 01799_ Airjet destroyed. 01799_ System corrupted by crushing effect (+2). 01799_ Flight Unit destroyed. 01799_ System corrupted by crushing effect (+5). Map ----- +----------------------------------------------------+ | ???????#"" "#"############?????????????????? | | ########"" "## """""" "#?????????????????? | | """""" " "# " " "#?????????????????? | | """""""=*! !%! &"#?????????????????? | | %!%% "" =* ! "#?????????????????? | | [[!= ## [ "####??????????????? | | ! ="## " #??????????????? | | !% ## " " "## #??????????????? | | =/ # """"""""#####?????????????? | | """""" """""" ################ ##????????????? | | ###### ###### #??????????????## ##???????????? | | #?#" "## #???????????????# ##??????????? | | #?#"" "## #???????????????######?????????? | | ??#"!! ""## #?????????????????## ##????????? | | #?#"!! ""## #??????????????????## ###??????? | | #?#"!! "?# #???????????????????## ##?????? | | #?#""! """## ############?????????## ##????? | | ??########### #??????????### #????? | | ????????????# ##???????????# #????? | | #???????????# #?????????### ##????? | | #???????????# #???????###% ##?????? | | ????????????# #??????## ##??????? | | ????????????# ############?????## ####???????? | | ############# #####???????????## ##??????????? | | ""##"""##"|"# """"#???####???#####???????????? | | ""##""|##" # "" "#???#@ #??## ##????????????? | | "#??## ##?## ##?????????????? | | " "#??# ########??????????????? | | = """"#??# ## #???????????????? | | |"##!!%##"" ## ######??## ######???????????????? | | ""##"""##"""####????????###????????????????????? | | #############??????????????????????????????????? | | ???????????????????????????????????????????????? | | ???????????????????????????????????????????????? | | ???????????????????????????????????????????????? | | ???????????????????????????????????????????????? | | ???????????????????????????????????????????????? | | ???????????????????????????????????????????????? | | ???????????????????????????????????????????????? | | ???????????????????????????????????????????????? | | ???????????????????????????????????????????????? | | ???????????????????????????????????????????????? | | ???????????????????????????????????????????????? | | ???????????????????????????????????????????????? | | ???????????????????????????????????????????????? | | ???????????????????????????????????????????????? | | | | | | | | | +----------------------------------------------------+ Best States ------------- Heat Dissipation 25 Energy Generation 14 Energy Capacity 160 Matter Stores 300 Matter Capacity 300 Sight Range 16 Terrain Scan Density 10 Evasion (%) 44 Item Schematics ----------------- None Robot Schematics ------------------ None Fabricated ------------ Nothing Repaired ---------- Nothing Alien Tech Used ----------------- None Achievements -------------- None Challenges ------------ None Game ------ Seed IonGuidanceTorch Manual? 0 Play Time 00:37:58 Cumulative 50.0 hours Start 2025.05.07 @ 11:45:09 End 2025.05.07 @ 12:26:44 Sessions 1 Manual Loads 0 Difficulty Rogue Special Mode None Game No. 71 Rogue 71 Adventurer 0 Explorer 0 Win Type - Total 0 Types 0/0/0/0/0/0/0/0/0/0 Lore% 19 Gallery% 28 Achievement% 27 Wizard Run 0 Options --------- Layout 1 ASCII 0 Keyboard 0 Movement Arrows Keybinds 0 Fullscreen 1 Font 16/SmallcapsGlow Map View 50x40 Zoom Use 0% Tactical HUD 1 Map Filters NONE Filters NONE Steam SD RUN: dfd69819-84d2-4e15-98a5-45d224f0d624